fUSD/lending_fUSD_20240125
["ID","MTS","AMOUNT","RATE_DAILY","PERIOD"]
[312702667,1706166640072,-500.0,0.00027,3]
[312702668,1706166640083,-155.54,0.00027397,2]
[312702669,1706166640092,-584.55,0.00027397,2]
[312702670,1706166640102,-1399.96,0.00027397,2]
[312702671,1706166640112,-584.55,0.00027556,2]
[312702672,1706166640121,-584.55,0.00027714,2]
[312702673,1706166640131,-155.54,0.0002774,2]
[312702674,1706166640140,-6049.10365887,0.00027834,2]
[312702675,1706166640153,-584.55,0.00027872,2]
[312702676,1706166640165,-2150.01,0.00027879,2]
[312702677,1706166640376,-2610.6338,0.00027994,2]
[312702678,1706166640386,-584.55,0.0002803,2]
[312702679,1706166640398,-155.54,0.00028082,2]
[312702680,1706166640407,-152.88280836,0.00028143,2]
[312702681,1706166640419,-584.55,0.00028189,2]
[312702682,1706166640429,-3302.0,0.000282,2]
[312702683,1706166640439,-10254.0,0.000282,2]
[312702684,1706166640448,-584.55,0.00028347,2]
[312702685,1706166640458,-1630.74,0.00028418,2]
[312702686,1706166640467,-155.54,0.00028425,2]
[312702687,1706166640477,-584.55,0.00028505,2]
[312702688,1706166640487,-584.55,0.00028664,2]
[312702689,1706166640496,-155.54,0.00028767,2]
[312702690,1706166640505,-584.55,0.00028822,2]
[312702691,1706166640515,-387.62224241,0.00028848,2]
[312702692,1706166640525,-165.74290237,0.00028848,2]
[312702693,1706166640534,-550.0,0.00029,3]
[312702694,1706166640543,-155.54,0.0002911,2]
[312702695,1706166640552,-437.56,0.00029305,2]
[312702696,1706166640561,-649.95,0.00029385,2]
[312702697,1706166640570,-155.54,0.00029452,2]
[312702698,1706166640580,-152.88280836,0.00029454,2]
[312702699,1706166640589,-553.4628103,0.00029463,2]
[312702700,1706166640599,-2150.01,0.00029523,2]
[312702701,1706166640609,-155.54,0.00029795,2]
[312702702,1706166640619,-430.68,0.00029836,2]
[312702703,1706166640629,-155.0,0.0003,2]
[312702704,1706166640639,-734.74285332,0.0003,4]
[312702705,1706166640651,-155.54,0.00030137,2]
[312702706,1706166640660,-154.4,0.00030137,2]
[312702707,1706166640669,-2258.12673245,0.00030301,2]
[312702708,1706166640917,-3790.97692642,0.00030301,2]
[312702709,1706166640927,-155.54,0.00030479,2]
[312702710,1706166640936,-1149.53041513,0.00030652,5]
[312702711,1706166640948,-502.92346142,0.00030652,5]
[312702712,1706166640957,-1630.74,0.00030682,2]
[312702714,1706166640967,-152.88280836,0.00030765,2]
[312702716,1706166640976,-155.54,0.00030822,2]
[312702718,1706166640985,-600.0,0.00031,3]
[312702720,1706166640994,-795.0,0.00031012,5]
[312702722,1706166641003,-155.54,0.00031164,2]
[312702724,1706166641012,-155.54,0.00031507,2]
[312702726,1706166641022,-196817.91180523,0.000318,3]
[312702728,1706166641034,-2125.0,0.000318,3]
[312702752,1706166641435,-2496.36279,0.000318,3]
[312702753,1706166641446,-480.70642555,0.000318,3]
[312702754,1706166641459,-407.60027978,0.000318,3]
[312702755,1706166641553,-350.55781886,0.000318,3]
[312702756,1706166641566,-2049.78330366,0.000318,3]
[312702757,1706166641578,-321.76073503,0.000318,3]
[312702758,1706166641589,-557.57111248,0.000318,3]
[312702759,1706166641601,-2789.2038977,0.000318,3]
[312702760,1706166641612,-4126.8,0.000318,3]
[312702782,1706166642617,-19049.83420458,0.000318,3]
[312702784,1706166642629,-891.55147034,0.000318,3]
[312702790,1706166642675,-999.44377386,0.000318,3]
[312702792,1706166642687,-8340.0,0.000318,3]
[312702794,1706166642698,-3594.68753257,0.000318,3]
[312702796,1706166642709,-3358.41649054,0.000318,3]
[312702799,1706166642732,-1700.0,0.000318,3]
[312702800,1706166642883,-517.59854452,0.000318,3]
[312702801,1706166642896,-252.42,0.000318,3]
[312702802,1706166642964,-854.1909518,0.000318,3]
[312702803,1706166642975,-1017.312,0.000318,3]
[312702804,1706166642986,-1012.97035628,0.000318,3]
[312702805,1706166642997,-930.94625846,0.000318,3]
[312702818,1706166645697,-4693.21981833,0.000318,3]
[312702819,1706166645890,-1641.08234743,0.000318,3]
[312702820,1706166645900,-155.54,0.00031849,2]
[312702821,1706166645909,-437.56,0.00031969,2]
[312702822,1706166645918,-5000.0,0.00032,2]
[312702823,1706166645927,-649.95,0.00032056,2]
[312702824,1706166645936,-152.88280836,0.00032076,2]
[312702825,1706166645945,-155.54,0.00032192,2]
[312702826,1706166645955,-155.54,0.00032534,2]
[312702827,1706166645965,-447.68476901,0.000327,2]
[312702828,1706166645974,-447.68476891,0.000327,2]
[312702829,1706166645983,-447.68476891,0.000327,2]
[312702830,1706166645993,-447.68476891,0.000327,2]
[312702831,1706166646002,-447.68476891,0.000327,2]
[312702832,1706166646011,-447.68476891,0.000327,2]
[312702833,1706166646021,-447.68476891,0.000327,2]
[312702835,1706166646030,-447.68476891,0.000327,2]
[312702836,1706166646039,-447.68476891,0.000327,2]
[312702837,1706166646048,-447.68476891,0.000327,2]
[312702838,1706166646058,-447.68476891,0.000327,2]
[312702839,1706166646067,-447.68476891,0.000327,2]
[312702840,1706166646076,-447.68476891,0.000327,2]
[312702841,1706166646085,-447.68476891,0.000327,2]
[312702842,1706166646094,-447.68476891,0.000327,2]
[312702843,1706166646104,-447.68476891,0.000327,2]
[312702844,1706166646113,-344.80979813,0.000327,2]
[312702852,1706166646765,-102.87497078,0.000327,2]
[312702853,1706166646774,-447.68476891,0.000327,2]
[312702854,1706166646783,-447.68476891,0.000327,2]
[312702855,1706166646792,-447.68476891,0.000327,2]
[312702856,1706166646801,-1768.46075324,0.00032768,4]
[312702857,1706166816703,174.98,0.00016712,2]
[312702859,1706167260463,174.98,0.00016712,2]
[312702894,1706167831787,-150.0,0.00021638,2]
[312702896,1706167831797,-150.0,0.00021638,2]
[312702898,1706167831806,-24183.06340245,0.00021639,2]
[312702900,1706167831816,-230.66712149,0.000234,2]
[312702901,1706167831825,-150.0,0.000235,2]
[312702902,1706167831834,-218.42,0.00024398,2]
[312702903,1706167831843,-1373.24330065,0.00025,4]
[312702904,1706167831853,-450.0,0.00025,3]
[312702905,1706167831863,-500.0,0.00026,2]
[312702906,1706167831873,-176.54,0.000267,2]
[312702907,1706167831882,-261.38574536,0.000267,10]
[312702908,1706167831892,-500.0,0.00027,3]
[312702909,1706167831901,-176.54,0.00027248,2]
[312702910,1706167831911,-499.99,0.00027248,2]
[312702911,1706167831921,-505.73,0.00027397,2]
[312702912,1706167831930,-1399.96,0.00027397,2]
[312702913,1706167831939,-505.73,0.00027686,2]
[312702914,1706167831948,-553.4628103,0.00027699,2]
[312702915,1706167831958,-3302.0,0.000277,2]
[312702916,1706167831967,-10254.0,0.000277,2]
[312702917,1706167831976,-176.54,0.00027796,2]
[312702918,1706167831986,-505.73,0.00027974,2]
[312702919,1706167831995,-505.73,0.00028262,2]
[312702920,1706167832004,-176.54,0.00028344,2]
[312702921,1706167832013,-505.73,0.00028551,2]
[312702922,1706167832022,-1453.07,0.00028626,2]
[312702923,1706167832031,-505.73,0.00028839,2]
[312702924,1706167832041,-176.54,0.00028892,2]
[312702925,1706167832050,-550.0,0.00029,3]
[312702926,1706167832059,-505.73,0.00029128,2]
[312702927,1706167832068,-505.73,0.00029416,2]
[312702928,1706167832078,-176.54,0.0002944,2]
[312702929,1706167832087,-505.73,0.00029704,2]
[312702930,1706167832096,-176.54,0.00029988,2]
[312702931,1706167832106,-505.73,0.00029993,2]
[312702932,1706167832115,-155.0,0.0003,2]
[312702933,1706167832124,-22903.21152417,0.0003,4]
[312702934,1706167832134,-505.73,0.00030281,2]
[312702935,1706167832143,-302.65688624,0.00030536,2]
[312702936,1706167832152,-505.73,0.00030569,2]
[312702937,1706167832162,-2000.0,0.00030657,2]
[312702938,1706167832172,-174.27,0.00030702,2]
[312702939,1706167832182,-593.64,0.00030771,2]
[312702940,1706167832191,-3533.15,0.00030813,2]
[312702941,1706167832200,-505.73,0.00030858,2]
[312702942,1706167832210,-1453.07,0.0003089,2]
[312702943,1706167832219,-3533.15,0.00030991,2]
[312702944,1706167832229,-600.0,0.00031,3]
[312702945,1706167832238,-412.9450634,0.00031059,4]
[312702946,1706167832247,-505.73,0.00031146,2]
[312702947,1706167832256,-3533.15,0.00031169,2]
[312702948,1706167832266,-250.0,0.00031248,2]
[312702949,1706167832275,-250.0,0.0003134,2]
[312702950,1706167832285,-3533.15,0.00031347,2]
[312702951,1706167832295,-1837.4,0.00031392,2]
[312702952,1706167832304,-505.73,0.00031435,2]
[312702953,1706167832313,-215.34,0.00031457,2]
[312702954,1706167832322,-3533.15,0.00031525,2]
[312702955,1706167832331,-3533.15,0.00031703,2]
[312702956,1706167832340,-505.73,0.00031723,2]
[312702957,1706167832350,-250.0,0.00031877,2]
[312702958,1706167832359,-3533.15,0.00031881,2]
[312702959,1706167832369,-593.64,0.0003191,2]
[312702960,1706167832378,-1000.0,0.00032007,2]
[312702961,1706167832386,-505.73,0.00032011,2]
[312702962,1706167832396,-23900.0,0.00032022,2]
[312702963,1706167832405,-2335.2,0.00032024,2]
[312702964,1706167832415,-3533.15,0.00032059,2]
[312702965,1706167832424,-180.34,0.00032106,2]
[312702966,1706167832433,-3533.15,0.00032238,2]
[312702967,1706167832442,-505.73,0.000323,2]
[312702968,1706167832451,-3533.15,0.00032416,2]
[312702969,1706167832461,-1000.0,0.00032546,2]
[312702970,1706167832470,-505.73,0.00032588,2]
[312702971,1706167832480,-180.0,0.0003259,120]
[312702972,1706167832489,-504.46573,0.000327,2]
[312702973,1706167832500,-247.03342612,0.00032766,4]
[312702974,1706167832510,-4280.64290563,0.00032768,4]
[312702975,1706167832520,-155.0,0.00032768,2]
[312702976,1706167832530,-2000.0,0.00032768,2]
[312702977,1706167832738,-200.0,0.00032768,2]
[312702978,1706167832749,-505.73,0.00032877,2]
[312702979,1706167832758,-155.54,0.00032877,2]
[312702980,1706167832767,-153.5,0.00032877,15]
[312702981,1706167832776,-150.00000003,0.00032877,2]
[312702982,1706167832786,-203.0,0.00032946,2]
[312702983,1706167832795,-650.0,0.00033,3]
[312702984,1706167832805,-1837.4,0.00033036,2]
[312702985,1706167832814,-593.64,0.00033048,2]
[312702986,1706167832823,-1453.07,0.00033154,2]
[312702987,1706167832832,-203.0,0.00033912,4]
[312702988,1706167832841,-1000.0,0.00034,4]
[312702989,1706167832850,-593.64,0.00034187,2]
[312702990,1706167832860,-734.74285332,0.00034527,4]
[312702991,1706167832869,-1652.45387655,0.00034529,7]
[312702992,1706167832878,-5000.0,0.00034549,2]
[312702993,1706167832887,-1837.4,0.00034679,2]
[312702994,1706167832896,-480.82,0.00034838,2]
[312702995,1706167832906,-324.42371738,0.00034874,4]
[312702996,1706167832917,-169.17562456,0.00034874,4]
[312702997,1706167832926,-203.0,0.00034878,6]
[312702998,1706167832938,-387.62224241,0.00034898,2]
[312702999,1706167832947,-162.50056532,0.00034898,4]
[312703000,1706167832956,-825.19424594,0.00034898,4]
[312703001,1706167832965,-165.74290237,0.00034898,4]
[312703002,1706167832976,-416.74055928,0.00034898,4]
[312703003,1706167832985,-365.78380243,0.00034899,4]
[312703004,1706167832995,-700.0,0.00035,3]
[312703005,1706167833005,-151.64,0.00035002,2]
[312703006,1706167833014,-154.4,0.00035017,2]
[312703007,1706167833022,-175.0,0.00035033,2]
[312703008,1706167833032,-176.0,0.00035033,2]
[312703009,1706167833041,-176.0,0.00035033,2]
[312703010,1706167833051,-6049.10365887,0.00035235,7]
[312703011,1706167833060,-180.34,0.00035317,2]
[312703012,1706167833069,-593.64,0.00035325,2]
[312703013,1706167833078,-1453.07,0.00035418,2]
[312703014,1706167833087,-3202.59674471,0.00035721,14]
[312703015,1706167833097,-220.781677,0.00035721,5]
[312703016,1706167833106,-759.56574328,0.00035749,4]
[312703017,1706167833116,-866.36269953,0.00035749,2]
[312703018,1706167833126,-238.71257934,0.0003575,2]
[312703019,1706167833135,-203.0,0.00035845,8]
[312703020,1706167833145,-4490.41291657,0.00035993,15]
[312703021,1706167833158,-709.63252708,0.00035993,15]
[312703022,1706167833260,-663.93622624,0.00035993,15]
[312703035,1706167838231,-154.14086214,0.000327,2]
[312703036,1706167838242,-318.87489708,0.00035993,15]
[312703037,1706167838274,-43817.14343303,0.00035993,15]
[312703038,1706167838284,-1837.4,0.00036323,2]
[312703039,1706167838293,-153.5,0.00036613,15]
[312703040,1706167838302,-1000.0,0.00036615,2]
[312703041,1706167838312,-564.91,0.00036711,2]
[312703042,1706167838321,-804.0,0.00036721,5]
[312703043,1706167838330,-319.0,0.00036721,2]
[312703044,1706167838339,-1138.0,0.00036721,2]
[312703045,1706167838349,-1008.622,0.00036721,2]
[312703046,1706167838358,-279.791,0.00036721,2]
[312703047,1706167838367,-1358.0,0.00036721,2]
[312703048,1706167838377,-2277.0,0.00036721,2]
[312703049,1706167838386,-2702.958,0.00036721,2]
[312703050,1706167838395,-6918.445,0.00036721,2]
[312703051,1706167838404,-837.0,0.00036721,2]
[312703052,1706167838413,-1857.0,0.00036721,2]
[312703053,1706167838423,-821.093,0.00036721,2]
[312703054,1706167838432,-947.0,0.00036721,2]
[312703055,1706167838441,-1031.0,0.00036721,2]
[312703056,1706167838451,-1247.334,0.00036721,2]
[312703057,1706167838460,-1307.796,0.00036721,2]
[312703059,1706167838470,-219.258,0.00036721,2]
[312703060,1706167838479,-707.791,0.00036721,2]
[312703062,1706167838489,-203.0,0.00036811,10]
[312703064,1706167838498,-513.10330174,0.00037,2]
[312703067,1706167838514,-480.82000357,0.00037,2]
[312703070,1706167838529,-531.58705206,0.00037,2]
[312703075,1706167838572,-2637.91035735,0.00037,2]
[312703078,1706167838584,-12386.06044893,0.00037,2]
[312703080,1706167838594,-20000.0,0.00037,5]
[312703081,1706167838603,-200.0,0.00037047,5]
[312703082,1706167838611,-206.55673463,0.000376,8]
[312703083,1706167838620,-1453.07,0.00037682,2]
[312703084,1706167838629,-2610.6338,0.000377,2]
[312703085,1706167838638,-153.58,0.000377,3]
[312703086,1706167838646,-504.46573,0.000377,2]
[312703087,1706167838655,-233.67,0.000377,3]
[312703088,1706167838664,-233.67,0.000377,3]
[312703089,1706167838673,-233.67,0.000377,3]
[312703090,1706167838682,-233.67,0.000377,3]
[312703091,1706167838691,-233.67,0.000377,3]
[312703092,1706167838705,-233.67,0.000377,3]
[312703094,1706167838714,-233.67,0.000377,3]
[312703096,1706167838723,-233.67,0.000377,3]
[312703098,1706167838733,-233.67,0.000377,3]
[312703100,1706167838743,-233.67,0.000377,3]
[312703102,1706167838752,-233.67,0.000377,3]
[312703104,1706167838761,-233.67,0.000377,3]
[312703106,1706167838771,-233.67,0.000377,3]
[312703108,1706167838781,-233.67,0.000377,3]
[312703110,1706167838791,-233.67,0.000377,3]
[312703112,1706167838801,-233.67,0.000377,3]
[312703114,1706167838811,-233.67,0.000377,3]
[312703116,1706167838820,-233.67,0.000377,3]
[312703118,1706167838830,-233.67,0.000377,3]
[312703120,1706167838838,-233.67,0.000377,3]
[312703122,1706167838848,-5249.64906404,0.00037701,11]
[312703210,1706167840343,-1490.14291227,0.00025,4]
[312703211,1706167840354,-801.57,0.00025,4]
[312703212,1706167841054,-13.25531451,0.00025,4]
[312703213,1706167841063,-154.14086209,0.00033407,2]
[312703214,1706167841072,-409.46380524,0.00035721,14]
[312703236,1706167843223,-1620.18488457,0.00035721,14]
[312703237,1706167843279,-217.30366976,0.00035721,14]
[312703238,1706167843288,-1937.0,0.00036721,2]
[312703239,1706167843297,-426.0,0.00036721,2]
[312703240,1706167843306,-998.0,0.00036721,2]
[312703241,1706167843316,-2991.7,0.0003699,10]
[312703242,1706167843325,-1786.73508836,0.000376,14]
[312703243,1706167843334,-799.45459483,0.00037701,11]
[312703244,1706167843343,-151.90559164,0.00037732,2]
[312703245,1706167843352,-203.0,0.00037777,12]
[312703246,1706167843362,-17000.000001,0.000378,5]
[312703247,1706167843371,-1837.4,0.00037967,2]
[312703248,1706167843380,-150.0,0.00038356,2]
[312703249,1706167843389,-1652.45387655,0.00038406,8]
[312703250,1706167843398,-183.41231157,0.00038502,7]
[312703251,1706167843407,-205.76582863,0.00038502,7]
[312703252,1706167843416,-165.69866661,0.00038523,7]
[312703253,1706167843425,-180.34,0.00038528,2]
[312703254,1706167843434,-203.0,0.00038743,14]
[312703255,1706167843443,-1661.33432529,0.00038749,28]
[312703256,1706167843453,-155.0,0.00038749,4]
[312703257,1706167843462,-7749.49465704,0.00038749,2]
[312703258,1706167843471,-460.51233359,0.00038749,4]
[312703259,1706167843481,-4623.87518628,0.00038749,4]
[312703260,1706167843490,-7816.92939524,0.00038749,4]
[312703261,1706167843500,-202.84481839,0.00038749,4]
[312703262,1706167843509,-159.14140732,0.00038749,4]
[312703263,1706167843518,-2968.85718946,0.0003888,2]
[312703264,1706167843527,-154.22402446,0.0003888,2]
[312703265,1706167843536,-282.26694691,0.0003898,2]
[312703266,1706167843546,-1430.03686544,0.00039,2]
[312703267,1706167843555,-170.8,0.0003926,2]
[312703268,1706167843564,-200.0,0.00039318,2]
[312703269,1706167843573,-200.0,0.00039335,2]
[312703270,1706167843582,-1922.23341464,0.00039342,11]
[312703271,1706167843591,-800.0,0.00039351,8]
[312703272,1706167843601,-200.0,0.00039352,2]
[312703273,1706167843610,-150.0,0.00039366,2]
[312703274,1706167843619,-200.0,0.00039369,2]
[312703275,1706167843628,-200.0,0.00039378,2]
[312703277,1706167843638,-200.0,0.00039387,2]
[312703279,1706167843647,-200.0,0.00039395,2]
[312703281,1706167843656,-200.0,0.00039404,2]
[312703283,1706167843666,-206.55673456,0.00039494,9]
[312703285,1706167843675,-1837.4,0.00039611,2]
[312703287,1706167843684,-168.32412907,0.00039618,2]
[312703289,1706167843694,-2322.20790011,0.00039681,3]
[312703291,1706167843706,-150.0,0.000397,2]
[312703292,1706167843715,-500.0,0.000397,2]
[312703293,1706167843724,-502.27191944,0.00039707,2]
[312703294,1706167843733,-564.91,0.00039708,2]
[312703295,1706167843742,-203.0,0.0003971,16]
[312703296,1706167843751,-1838.26,0.00039712,5]
[312703297,1706167843761,-1829.0,0.00039712,5]
[312703298,1706167843770,-2028.63552595,0.00039713,4]
[312703299,1706167843779,-985.353,0.00039714,4]
[312703300,1706167843789,-2809.26433173,0.00039714,4]
[312703301,1706167843798,-1789.34453068,0.00039714,4]
[312703302,1706167843807,-3626.06527258,0.00039714,4]
[312703303,1706167843817,-1192.04708021,0.00039715,4]
[312703304,1706167843825,-181.87084846,0.00039715,4]
[312703305,1706167843834,-734.12814316,0.00039716,10]
[312703306,1706167843843,-564.91,0.00039716,2]
[312703307,1706167843853,-151.05979893,0.00039717,2]
[312703308,1706167843862,-3301.0962401,0.00039717,2]
[312703309,1706167843871,-3250.76878674,0.00039718,2]
[312703310,1706167843880,-157244.3457514,0.00039718,2]
[312703311,1706167843889,-3791.98291,0.00039718,2]
[312703312,1706167843898,-32121.5177241,0.00039718,2]
[312703313,1706167843907,-10302.9898992,0.00039718,2]
[312703314,1706167843916,-6806.7642367,0.00039718,2]
[312703315,1706167843926,-319.0,0.00039721,2]
[312703316,1706167843935,-1138.0,0.00039721,2]
[312703317,1706167843945,-864.0,0.00039721,2]
[312703318,1706167843954,-2277.0,0.00039721,2]
[312703319,1706167843963,-837.0,0.00039721,2]
[312703320,1706167843972,-1857.0,0.00039721,2]
[312703321,1706167843981,-947.0,0.00039721,2]
[312703322,1706167843990,-1233.0,0.00039721,2]
[312703323,1706167843999,-1251.0,0.00039721,2]
[312703324,1706167844008,-1932.0,0.00039721,2]
[312703325,1706167844017,-619.20243569,0.00039721,4]
[312703326,1706167844027,-1000.0,0.00039726,2]
[312703327,1706167844035,-1000.0,0.00039726,2]
[312703328,1706167844045,-1000.0,0.00039726,2]
[312703329,1706167844054,-1000.0,0.00039726,2]
[312703330,1706167844063,-1000.0,0.00039726,2]
[312703331,1706167844072,-191.33055255,0.00039726,2]
[312703332,1706167844082,-1371.6426847,0.00039745,2]
[312703333,1706167844091,-1778.39,0.00039772,5]
[312703334,1706167844100,-1826.44,0.00039772,5]
[312703335,1706167844109,-600.0,0.000398,14]
[312703336,1706167844119,-5895.749,0.00039823,120]
[312703337,1706167844128,-1200.63496984,0.00039843,2]
[312703338,1706167844137,-474.67401079,0.000399,10]
[312703339,1706167844146,-1200.0,0.000399,14]
[312703340,1706167844155,-83651.19763551,0.00039923,5]
[312703341,1706167844164,-2487.35728884,0.00039943,2]
[312703342,1706167844174,-1453.07,0.00039946,2]
[312703343,1706167844184,-200.0,0.00039987,3]
[312703344,1706167844193,-200.0,0.00039987,2]
[312703345,1706167844202,-564.91,0.0003999,2]
[312703346,1706167844211,-155.0,0.0004,2]
[312703347,1706167844221,-1085.37856486,0.0004,4]
[312703348,1706167844230,-22049.77147498,0.0004,4]
[312703349,1706167844239,-2272.01463956,0.0004,4]
[312703350,1706167844248,-54328.02898102,0.0004,4]
[312703351,1706167844257,-2346.5990325,0.0004,4]
[312703352,1706167844267,-1513.23,0.0004,3]
[312703353,1706167844275,-2019.63,0.0004,16]
[312703354,1706167844284,-172.03720502,0.0004,120]
[312703355,1706167844294,-90457.45220504,0.0004,7]
[312703356,1706167844303,-501.146238,0.0004,15]
[312703357,1706167844312,-4000.0,0.0004,2]
[312703358,1706167844322,-5000.0,0.00040068,3]
[312703359,1706167844331,-2165.0,0.000401,14]
[312703360,1706167844340,-500.0,0.00040146,2]
[312703361,1706167844350,-6049.10365887,0.00040168,14]
[312703362,1706167844359,-170.64638633,0.00040232,14]
[312703363,1706167844369,-3356.8414032,0.00040241,10]
[312703364,1706167844378,-152.88280836,0.00040245,7]
[312703365,1706167844388,-241.590407,0.000403,12]
[312703366,1706167844397,-484.77861088,0.00040305,4]
[312703367,1706167844406,-1205.9494329,0.00040306,4]
[312703368,1706167844415,-959.02781888,0.00040306,2]
[312703369,1706167844424,-500.0,0.00040309,2]
[312703370,1706167844434,-155.82809595,0.00040311,7]
[312703371,1706167844443,-5860.71128516,0.00040311,4]
[312703372,1706167844452,-2718.19981851,0.00040311,30]
[312703373,1706167844461,-577.35924802,0.00040311,4]
[312703374,1706167844470,-564.91,0.00040312,2]
[312703375,1706167844479,-5212.05417927,0.00040322,10]
[312703376,1706167844635,-99714.0860612,0.00040322,5]
[312703377,1706167844645,-35376.52962629,0.00040345,120]
[312703378,1706167844654,-1505.25830424,0.00040345,4]
[312703379,1706167844663,-5693.28426335,0.00040345,120]
[312703380,1706167844672,-527.207472,0.00040345,7]
[312703381,1706167844681,-240.09524949,0.00040345,30]
[312703382,1706167844690,-1257.60276125,0.00040345,2]
[312703383,1706167844702,-9293.95345983,0.00040345,120]
[312703384,1706167844712,-3006.0,0.00040345,2]
[312703385,1706167844721,-4198.78369747,0.00040345,2]
[312703386,1706167844730,-159.61855453,0.00040345,120]
[312703387,1706167844740,-1790.05085,0.00040345,30]
[312703388,1706167844749,-386.7103306,0.00040345,2]
[312703389,1706167844758,-341.07366047,0.00040345,2]
[312703390,1706167844767,-153.5,0.00040349,15]
[312703391,1706167844777,-150.0,0.00040375,2]
[312703392,1706167844786,-5212.05417927,0.0004039,10]
[312703393,1706167844796,-14678.65573035,0.000404,50]
[312703394,1706167844807,-500.0,0.00040471,2]
[312703395,1706167844816,-20848.2167171,0.0004049,10]
[312703396,1706167844825,-564.91,0.0004049,2]
[312703397,1706167844834,-40064.43408337,0.000405,2]
[312703398,1706167844843,-500.0,0.00040633,2]
[312703399,1706167844853,-203.0,0.00040676,18]
[312703400,1706167844863,-1000.0,0.00040683,2]
[312703401,1706167844873,-5212.05417927,0.0004069,11]
[312703402,1706167844882,-560.0,0.0004069,2]
[312703403,1706167844891,-10936.69190191,0.000407,2]
[312703404,1706167844900,-627.452597,0.000407,2]
[312703405,1706167844909,-500.0,0.00040796,2]
[312703406,1706167844918,-150.87500726,0.0004091,15]
[312703407,1706167844928,-152.88280836,0.00040928,10]
[312703408,1706167844938,-500.0,0.00040958,2]
[312703409,1706167844947,-200.0,0.00040987,5]
[312703410,1706167844956,-5212.05417927,0.0004099,11]
[312703411,1706167844965,-1050.0,0.0004099,2]
[312703412,1706167844974,-256.0,0.0004099,2]
[312703413,1706167844983,-800.0,0.00041,2]
[312703414,1706167844992,-3445.7000334,0.00041,4]
[312703415,1706167845002,-1566.0,0.00041,3]
[312703416,1706167845011,-20848.2167171,0.00041086,11]
[312703417,1706167845020,-2328.16745747,0.00041095,2]
[312703418,1706167845029,-154.98606742,0.00041095,7]
[312703419,1706167845038,-287.65591421,0.00041095,7]
[312703420,1706167845047,-200.8631111,0.00041095,7]
[312703421,1706167845056,-152.077904,0.00041096,14]
[312703422,1706167845065,-151.284075,0.00041096,14]
[312703423,1706167845074,-151.584905,0.00041096,14]
[312703424,1706167845083,-155.835878,0.00041096,14]
[312703425,1706167845092,-155.835878,0.00041096,14]
[312703426,1706167845101,-155.835878,0.00041096,14]
[312703427,1706167845110,-155.835878,0.00041096,14]
[312703428,1706167845119,-155.835878,0.00041096,14]
[312703429,1706167845128,-155.835878,0.00041096,14]
[312703430,1706167845137,-155.835878,0.00041096,14]
[312703431,1706167845146,-155.835878,0.00041096,14]
[312703432,1706167845155,-155.835878,0.00041096,14]
[312703433,1706167845164,-155.835878,0.00041096,14]
[312703434,1706167845173,-151.0,0.00041096,14]
[312703435,1706167845183,-151.0,0.00041096,14]
[312703436,1706167845193,-160.775189,0.00041096,14]
[312703437,1706167845203,-155.77569,0.00041096,14]
[312703438,1706167845212,-151.0,0.00041096,14]
[312703439,1706167845221,-188.065378,0.00041096,14]
[312703440,1706167845230,-151.0,0.00041096,14]
[312703441,1706167845239,-151.0,0.00041096,14]
[312703442,1706167845249,-151.0,0.00041096,14]
[312703443,1706167845258,-151.0,0.00041096,14]
[312703444,1706167845267,-156.151122,0.00041096,14]